bitfinex-derivatives/quotes_ETHF0:USTF0_20241023
["timestamp","ask_amount","ask_price","bid_price","bid_amount"]
[1729721049801,4.6,2511.2,2510.8,4.0606]
[1729721050110,4.9750645,2511.1,2510.9,0.39859]
[1729721050412,4.9750645,2511.1,2510.9,0.3986]
[1729721050615,4.9750645,2511.1,2510.8,5.4472]
[1729721051107,4.9750645,2511.1,2510.9,0.3986]
[1729721052306,0.39858,2511.0,2510.9,0.3986]
[1729721052505,0.39858,2511.0,2510.8,5.4472]
[1729721052706,0.39859,2511.0,2510.8,5.4472]
[1729721053312,0.39859,2511.0,2510.8,5.0486]
[1729721053512,0.39859,2511.0,2510.9,0.3986]
[1729721053707,0.3986,2510.9,2510.8,5.44721]
[1729721055116,4.5764945,2511.1,2510.8,5.0486]
[1729721055420,0.3986,2510.9,2510.8,5.4472]
[1729721058421,4.6,2511.2,2510.8,9.031]
[1729721058617,4.99856,2511.2,2511.1,0.39857]
[1729721059323,4.6,2511.2,2511.1,0.39857]
[1729721059715,4.99855,2511.2,2511.1,0.39857]
[1729721060218,4.6,2511.2,2511.1,0.39857]
[1729721060728,4.6,2511.2,2511.0,3.2078]
[1729721060911,9.29329717,2511.2,2511.1,0.39857]
[1729721061819,9.29329717,2511.2,2511.0,3.60637]
[1729721063919,9.29329717,2511.2,2511.0,0.39857]
[1729721065024,0.39857,2511.1,2510.9,0.39858]
[1729721065229,9.29329717,2511.2,2511.0,0.39857]
[1729721065527,0.39857,2511.1,2511.0,0.39858]
[1729721065720,0.39857,2511.1,2510.8,5.0526]
[1729721065920,0.39857,2511.1,2511.0,0.39858]
[1729721066114,0.39857,2511.1,2510.9,0.39859]
[1729721066921,0.39859,2511.0,2510.8,4.4592]
[1729721067123,0.39859,2511.0,2510.9,0.3986]
[1729721067728,8.89473717,2511.2,2510.8,4.0606]
[1729721067924,8.89473717,2511.2,2511.0,0.39857]
[1729721068621,9.29329717,2511.2,2511.0,0.39857]
[1729721068822,8.89473717,2511.2,2511.1,0.39857]
[1729721069018,4.99855,2511.2,2511.1,0.39857]
[1729721069924,4.6,2511.2,2511.1,0.39857]
[1729721071028,4.99855,2511.2,2511.1,0.39857]
[1729721071524,4.99855,2511.2,2510.9,4.1998]
[1729721072225,4.6,2511.2,2511.1,0.39857]
[1729721072732,4.99855,2511.2,2510.9,4.1998]
[1729721073430,4.99855,2511.2,2511.1,0.39857]
[1729721074027,4.6,2511.2,2511.1,0.39857]
[1729721078025,4.6,2511.2,2511.1,4.38097]
[1729721078232,4.6,2511.2,2511.1,4.50561437]
[1729721078536,2.4427,2511.2,2511.1,4.70503572]
[1729721079131,2.4427,2511.2,2511.1,4.38097]
[1729721079434,2.4427,2511.2,2511.1,4.5056041]
[1729721080126,2.4427,2511.2,2511.1,7.7134041]
[1729721080633,2.4427,2511.2,2511.1,9.32441472]
[1729721081535,2.4427,2511.2,2511.1,9.80311472]
[1729721082434,2.4427,2511.2,2511.1,9.80225657]
[1729721082636,2.4427,2511.2,2511.1,9.67762247]
[1729721082830,2.4427,2511.2,2511.1,9.80225683]
[1729721083031,2.4427,2511.2,2511.1,8.19210436]
[1729721083331,2.4427,2511.2,2511.1,9.18410436]
[1729721084127,1.7236,2511.2,2511.1,9.18410436]
[1729721084329,1.7236,2511.2,2511.1,12.54928782]
[1729721085437,1.7236,2511.2,2511.1,12.54927055]
[1729721085638,1.7236,2511.2,2511.1,12.54927188]
[1729721086334,1.7236,2511.2,2511.1,9.52226574]
[1729721086538,1.7236,2511.2,2511.1,8.67839857]
[1729721086932,1.7236,2511.2,2511.1,8.55377]
[1729721087339,1.7236,2511.2,2511.1,8.67840905]
[1729721089441,1.7236,2511.2,2511.1,3.73100905]
[1729721089633,1.7236,2511.2,2511.1,3.60637]
[1729721090441,1.7236,2511.2,2511.1,4.57137]
[1729721091245,2.2099,2511.2,2511.1,4.57137]
[1729721093955,2.2099,2511.2,2511.1,1.36357]
[1729721094246,1.7236,2511.2,2511.1,4.57137]
[1729721094444,1.7236,2511.2,2511.1,4.69600944]
[1729721096451,2.2083,2511.2,2511.1,4.69600944]
[1729721096848,2.2083,2511.2,2511.1,3.73100944]
[1729721097050,2.60685,2511.2,2511.1,4.57137]
[1729721097354,2.2083,2511.2,2511.1,4.57137]
[1729721099355,2.60685,2511.2,2511.1,4.57137]
[1729721099646,2.2083,2511.2,2511.1,4.57137]
[1729721099847,2.2083,2511.2,2511.1,3.60637]
[1729721100451,4.04685,2511.2,2511.1,3.2078]
[1729721100666,3.6483,2511.2,2511.1,3.60637]
[1729721100855,2.2083,2511.2,2511.1,5.04637]
[1729721102055,2.2083,2511.2,2511.1,3.60637]
[1729721104459,4.04685,2511.2,2511.1,3.60637]
[1729721104661,4.04685,2511.2,2511.1,2.4725]
[1729721105251,4.04685,2511.2,2511.1,2.87107]
[1729721107059,0.3986,2510.9,2510.8,3.60641]
[1729721107261,1.8386,2510.9,2510.8,3.60641]
[1729721107658,1.8386,2510.9,2510.8,3.2078]
[1729721108154,1.8386,2510.9,2510.8,3.60641]
[1729721108359,1.8386,2510.9,2510.8,3.2078]
[1729721109465,1.8386,2510.9,2510.5,2.406]
[1729721109466,5.4224,2510.9,2510.5,3.2078]
[1729721109765,1.44,2510.6,2510.5,4.57246]
[1729721109962,1.44,2510.6,2510.5,4.69713545]
[1729721110158,1.8937,2510.6,2510.5,4.69713545]
[1729721110359,0.9045,2510.6,2510.5,6.13713545]
[1729721111165,0.9045,2510.6,2510.5,6.01246]
[1729721111364,2.74314,2510.6,2510.5,3.60646]
[1729721111755,2.74314,2510.6,2510.5,3.2078]
[1729721111960,0.39868,2510.5,2510.4,0.39867]
[1729721112161,1.83868,2510.5,2510.4,0.39867]
[1729721113261,2.3445,2510.6,2510.3,1.44]
[1729721113460,0.9045,2510.6,2510.5,0.39866]
[1729721113661,2.74314,2510.6,2510.5,0.39866]
[1729721114681,2.3445,2510.6,2510.5,0.39866]
[1729721116970,2.74314,2510.6,2510.5,0.39866]
[1729721118271,2.74315,2510.6,2510.5,0.39866]
[1729721119869,2.74315,2510.6,2510.3,2.406]
[1729721120173,2.74316,2510.6,2510.4,0.39867]
[1729721120770,2.74316,2510.6,2510.3,2.406]
[1729721120975,2.3445,2510.6,2510.4,0.39866]
[1729721121171,0.39866,2510.5,2510.4,0.39866]
[1729721121569,2.74316,2510.6,2510.4,0.39866]
[1729721121766,1.44,2510.5,2510.4,0.39866]
[1729721121966,1.44,2510.5,2510.3,2.406]
[1729721121967,1.44,2510.5,2510.3,1.44]
[1729721122167,2.3445,2510.6,2510.5,0.39866]
[1729721123375,2.3445,2510.6,2510.5,0.86466]
[1729721123775,2.74314,2510.6,2510.5,0.86466]
[1729721124079,2.3445,2510.6,2510.5,0.86466]
[1729721126583,2.74314,2510.6,2510.5,0.86466]
[1729721126775,2.74314,2510.6,2510.5,0.466]
[1729721127082,2.74314,2510.6,2510.5,0.86466]
[1729721127281,2.74314,2510.6,2510.5,0.466]
[1729721127484,2.74314,2510.6,2510.5,0.86466]
[1729721128277,2.3445,2510.6,2510.4,0.39867]
[1729721128485,0.39866,2510.5,2510.4,0.39867]
[1729721128675,2.74316,2510.6,2510.4,0.39867]
[1729721129377,1.44,2510.5,2510.4,0.39867]
[1729721130975,1.44,2510.5,2510.3,2.4515]
[1729721131175,1.44,2510.5,2508.6,19.7049208]
[1729721131176,0.99674,2510.3,2509.6,3.2078]
[1729721131371,1.44,2509.7,2509.6,4.0797]
[1729721131579,1.44,2509.7,2509.6,5.5197]
[1729721132379,1.83879,2509.7,2509.6,3.6809]
[1729721132572,0.9837,2510.2,2509.9,0.39875]
[1729721132573,0.39872,2510.1,2509.9,0.39875]
[1729721132778,1.44,2510.0,2509.8,1.83877]
[1729721133077,1.83875,2510.0,2509.8,1.83877]
[1729721133281,1.44,2509.9,2509.8,0.39877]
[1729721133472,0.39875,2510.0,2509.8,0.39877]
[1729721133672,1.44,2509.9,2509.8,0.39877]
[1729721133875,1.83876,2509.9,2509.8,0.39877]
[1729721134075,1.44,2509.9,2509.8,0.39877]
[1729721135287,1.83876,2509.9,2509.8,0.39877]
[1729721135986,1.44,2509.9,2509.8,0.39877]
[1729721136187,1.83876,2509.9,2509.8,0.39877]
[1729721136384,1.44,2509.9,2509.8,0.39877]
[1729721137481,1.83876,2509.9,2509.8,0.39877]
[1729721138077,1.83876,2509.9,2509.7,0.39878]
[1729721138282,1.44,2509.8,2509.7,0.39879]
[1729721138482,0.9837,2510.2,2509.8,3.984]
[1729721138483,1.44,2510.2,2509.8,3.984]
[1729721138682,1.44,2510.2,2510.1,1.83872]
[1729721139177,1.44,2510.2,2510.1,0.39872]
[1729721139788,1.44,2510.2,2510.0,2.4457]
[1729721139984,1.44,2510.2,2510.1,0.39872]
[1729721140179,1.44,2510.2,2510.0,2.4457]
[1729721140384,3.33902,2510.1,2510.0,3.2078]
[1729721141587,2.9403,2510.1,2510.0,3.60654]
[1729721141978,3.33902,2510.1,2510.0,3.2078]
[1729721142178,3.33902,2510.1,2510.0,3.60654]
[1729721146793,3.33902,2510.1,2510.0,0.39874]
[1729721147099,3.33902,2510.1,2510.0,3.60654]
[1729721147296,3.33902,2510.1,2510.0,3.2078]
[1729721148797,2.9403,2510.1,2510.0,3.2078]
[1729721148994,3.33902,2510.1,2510.0,3.2078]
[1729721149396,3.33902,2510.1,2510.0,3.60654]
[1729721153901,2.9403,2510.1,2510.0,3.60654]
[1729721154298,3.33902,2510.1,2510.0,3.60654]
[1729721154701,1.5003,2510.1,2510.0,3.60654]
[1729721154897,2.9403,2510.1,2510.0,3.60654]
[1729721156215,3.33902,2510.1,2510.0,3.2078]
[1729721156701,3.33902,2510.1,2510.0,3.60654]
[1729721158503,3.33902,2510.1,2510.0,0.39874]
[1729721159401,0.39874,2510.0,2509.9,0.39874]
[1729721159603,0.39879,2509.7,2509.6,0.39879]
[1729721159802,1.83879,2509.7,2509.6,0.39879]
[1729721161498,0.39882,2509.6,2509.5,0.39881]
[1729721161704,2.83492,2509.6,2509.5,0.39881]
[1729721161997,2.9296,2509.6,2509.5,0.39881]
[1729721162810,1.44,2509.6,2509.5,1.83881]
[1729721164607,1.44,2509.6,2509.5,5.04661]
[1729721167205,1.44,2509.6,2509.5,1.83881]
[1729721167711,1.44,2509.8,2509.7,0.39879]
[1729721167913,1.44,2509.9,2509.7,1.44]
[1729721168211,1.0057,2510.0,2509.9,0.39876]
[1729721168416,1.44,2509.9,2509.8,3.60657]
[1729721168607,1.83876,2509.9,2509.8,3.60657]
[1729721169012,1.44,2509.9,2509.8,3.60657]
[1729721169902,1.44,2509.9,2509.8,0.39877]
[1729721170108,1.44,2509.9,2509.8,3.60657]
[1729721170712,1.5116,2510.3,2509.8,9.03057]
[1729721170904,1.44,2510.2,2510.1,0.39871]
[1729721171911,1.44,2510.3,2510.2,0.39871]
[1729721172111,0.5125,2510.5,2510.1,3.2078]
[1729721172313,0.39869,2510.4,2510.3,0.39868]
[1729721174208,2.36159,2510.4,2510.3,0.39868]
[1729721175118,0.39869,2510.3,2510.2,3.2078]
[1729721175307,2.36849,2510.3,2510.2,3.2078]
[1729721175507,10.74227633,2510.3,2510.2,3.2078]
[1729721175718,10.34358633,2510.3,2509.9,0.39875]
[1729721175919,1.83874,2510.0,2509.9,0.39875]
[1729721176517,1.44,2510.0,2509.9,0.39875]
[1729721176915,2.83234,2510.0,2509.9,0.39875]
[1729721177112,2.4336,2510.0,2509.9,0.39875]
[1729721177313,2.83234,2510.0,2509.9,0.39875]
[1729721178119,2.4336,2510.0,2509.9,0.39875]
[1729721178319,2.83234,2510.0,2509.9,0.39875]
[1729721183124,0.39876,2509.9,2509.8,1.38676]
[1729721183324,2.32146,2509.9,2509.8,1.38676]
[1729721183828,1.9227,2509.9,2509.8,1.38676]
[1729721184816,2.32146,2509.9,2509.8,1.38676]
[1729721185528,1.9227,2509.9,2509.8,1.38676]
[1729721186316,6.30428591,2509.9,2509.5,3.2078]
[1729721186522,0.39879,2509.8,2509.7,0.39878]
[1729721187420,0.3988,2509.6,2509.5,3.2078]
[1729721187622,3.2788,2509.6,2509.5,3.2078]
[1729721188024,2.2935,2509.6,2509.5,3.2078]
[1729721188224,1.8947,2509.6,2509.5,3.60662]
[1729721188418,3.6905,2509.9,2509.5,8.6326]
[1729721188626,0.39873,2510.1,2510.0,0.39874]
[1729721188829,1.83873,2510.1,2510.0,0.39874]
[1729721189123,1.83873,2510.1,2509.9,0.39875]
[1729721189124,0.39874,2510.0,2509.9,0.39875]
[1729721189332,2.30404,2510.0,2509.9,0.39875]
[1729721189725,1.9053,2510.0,2509.6,3.43824014]
[1729721189930,1.44,2509.7,2509.6,2.7961]
[1729721190129,1.44,2509.7,2509.6,4.9397545]
[1729721190331,1.44,2509.7,2509.6,9.12409681]
[1729721190731,1.44,2509.7,2509.6,8.9245545]
[1729721190931,1.44,2509.7,2509.6,7.88361436]
[1729721191535,1.44,2509.7,2509.6,9.124098]
[1729721191738,1.44,2509.7,2509.6,8.9245545]
[1729721191939,1.44,2509.7,2509.6,9.12409767]
[1729721192126,1.44,2509.7,2509.6,8.9245545]
[1729721192329,1.44,2509.7,2509.6,9.1240982]
[1729721192533,1.44,2509.7,2509.6,7.88361633]
[1729721193139,1.44,2509.7,2509.6,3.89881633]
[1729721193343,1.44,2509.7,2509.6,7.88361633]
[1729721195234,1.44,2509.7,2509.6,1.99021633]
[1729721195442,1.9246,2509.7,2509.6,1.99021633]
[1729721195632,1.9246,2509.7,2509.6,1.01221633]
[1729721195834,2.81699,2509.7,2509.6,0.12471633]
[1729721196040,2.81699,2509.7,2509.6,0.3988]
[1729721196246,0.3988,2509.6,2509.5,3.60661]
[1729721196434,1.44,2509.6,2509.5,3.60661]
[1729721196648,1.44,2509.7,2509.6,0.3988]
[1729721196846,1.35786,2509.9,2509.8,0.39877]
[1729721197147,2.79786,2509.9,2509.8,0.39877]
[1729721197354,1.9025,2509.9,2509.8,0.39877]
[1729721197555,2.30126,2509.9,2509.8,0.39877]
[1729721199049,1.9025,2509.9,2509.8,0.39877]
[1729721199249,1.44,2509.9,2509.8,0.39877]
[1729721199851,1.83876,2509.9,2509.8,0.39877]
[1729721203351,2.31472,2510.2,2510.1,0.39872]
[1729721204147,2.31472,2510.2,2510.1,0.87992]
[1729721204346,1.916,2510.2,2510.1,0.87992]
[1729721204552,1.44,2510.2,2510.1,0.87992]
[1729721204752,1.44,2510.2,2510.1,1.36222]
[1729721205653,0.99652,2510.9,2510.1,6.3875]
[1729721205853,3.2078,2511.0,2510.2,3.73120653]
[1729721205854,1.44,2510.3,2510.2,3.73120653]
[1729721206363,1.44,2510.3,2510.2,7.71520653]
[1729721207162,0.39868,2510.4,2510.3,0.39868]
[1729721207357,1.83868,2510.4,2510.3,0.39868]
[1729721207556,1.83868,2510.4,2510.3,4.38188]
[1729721208254,1.83868,2510.4,2510.3,0.39868]
[1729721209963,2.72,2511.2,2510.3,7.85994]
[1729721210160,0.39858,2511.0,2510.8,1.44]
[1729721210359,2.34247,2511.1,2510.9,0.89029]
[1729721210762,2.34247,2511.1,2510.9,4.09809]
[1729721211159,1.7236,2511.2,2510.9,5.1395]
[1729721211160,3.1636,2511.2,2510.9,5.1395]
[1729721211364,1.7236,2511.2,2511.1,1.83857]
[1729721211661,1.7236,2511.2,2511.1,1.96321058]
[1729721211856,1.7236,2511.2,2511.1,6.54384842]
[1729721212064,1.7236,2511.2,2511.1,6.6684827]
[1729721212260,1.7236,2511.2,2511.1,6.54384212]
[1729721212563,1.44,2512.1,2511.9,0.39843]
[1729721212761,1.44,2512.1,2512.0,2.80842]
[1729721212963,0.4949,2512.3,2512.0,2.41]
[1729721213269,1.44,2512.1,2512.0,1.36842]
[1729721213668,1.44,2512.1,2512.0,0.97]
[1729721214169,1.44,2512.1,2512.0,1.36842]
[1729721214461,0.89328,2512.3,2512.0,1.36842]
[1729721214462,0.89329,2512.3,2512.0,1.36842]
[1729721214869,0.4949,2512.3,2512.0,0.97]
[1729721215070,0.89328,2512.3,2512.0,0.97]
[1729721215264,0.4949,2512.3,2512.0,1.36841]
[1729721216166,0.89328,2512.3,2512.0,1.36841]
[1729721217666,0.3984,2512.2,2511.9,3.60623]
[1729721217862,0.3984,2512.2,2512.0,0.97]
[1729721218776,0.39839,2512.2,2512.0,0.97]
[1729721220268,0.4949,2512.3,2512.0,0.97]
[1729721220471,0.3984,2512.2,2512.0,0.97]
[1729721221272,0.39842,2512.1,2511.8,3.60624]
[1729721221477,0.39841,2512.1,2512.0,0.97]
[1729721221675,0.39844,2511.9,2511.6,0.88768]
[1729721221870,0.91213,2512.0,2511.7,0.97]
[1729721222071,0.91213,2512.0,2511.7,1.36846]
[1729721222567,0.91213,2512.0,2511.8,0.39845]
[1729721223771,0.5137,2512.0,2511.7,0.97]
[1729721223968,0.5137,2512.0,2511.7,1.36846]
[1729721223969,0.39844,2511.9,2511.7,1.36846]
[1729721224469,0.39844,2511.9,2511.7,5.35006]
[1729721224667,0.39844,2511.9,2511.7,1.36846]
[1729721224864,0.39845,2511.8,2511.7,0.39846]
[1729721225176,0.39847,2511.7,2511.6,4.1778]
[1729721225671,0.5166,2511.8,2511.3,3.2078]
[1729721225876,0.5166,2511.8,2511.3,3.60633]
[1729721225877,0.39852,2511.4,2511.3,3.60633]
[1729721226063,0.39851,2511.5,2511.3,4.57633]
[1729721226676,0.39851,2511.5,2511.4,0.39852]
[1729721227583,0.3985,2511.6,2511.4,0.39852]
[1729721227975,0.5068,2511.5,2511.4,0.39852]
[1729721229275,0.5068,2511.5,2511.4,1.36852]
[1729721229976,0.9053,2511.5,2511.4,0.97]
[1729721230677,0.9053,2511.5,2511.3,3.60633]
[1729721230975,0.39852,2511.4,2511.3,0.97]
[1729721231571,0.39855,2511.2,2511.0,3.60637]
[1729721231771,0.39855,2511.2,2511.1,1.36857]
[1729721232379,0.39856,2511.2,2511.0,3.60637]
[1729721232577,0.88774,2511.3,2511.1,0.39855]
[1729721232778,0.39855,2511.2,2511.1,0.39856]
[1729721233679,0.4892,2511.3,2511.1,0.39856]
[1729721233871,0.88774,2511.3,2511.1,0.39856]
[1729721235480,0.88774,2511.3,2511.0,0.39858]
[1729721235670,0.88774,2511.3,2511.1,0.39855]
[1729721236378,2.32774,2511.3,2511.1,1.83855]
[1729721237274,2.32774,2511.3,2511.2,0.39855]
[1729721238579,2.32774,2511.3,2511.1,1.83855]
[1729721238980,0.4847,2511.2,2511.1,1.83855]
[1729721239874,3.2078,2511.6,2511.4,0.39852]
[1729721240076,3.60629,2511.6,2511.5,2.455]
[1729721240774,0.39849,2511.6,2511.5,2.455]
[1729721240973,0.39849,2511.6,2511.5,2.8535]
[1729721242480,0.39849,2511.6,2511.5,1.4135]
[1729721244975,0.99605,2512.1,2511.5,1.4135]
[1729721244976,0.19451823,2514.2,2511.5,4.9966]
[1729721245177,0.4913,2512.5,2512.1,3.2078]
[1729721245375,0.39837,2512.4,2512.3,0.39837]
[1729721246069,0.4913,2512.5,2512.2,1.88138]
[1729721246272,0.4913,2512.5,2512.2,1.483]
[1729721246682,0.39837,2512.4,2512.2,1.41339]
[1729721247269,0.39837,2512.4,2512.3,0.39837]
[1729721248375,0.4913,2512.5,2512.3,0.39837]
[1729721248572,0.88965,2512.5,2512.3,0.39837]
[1729721249079,4.09745,2512.5,2512.3,0.39837]
[1729721249279,0.39837,2512.4,2512.2,1.41338]
[1729721249482,4.09745,2512.5,2512.3,0.39837]
[1729721250381,4.09745,2512.5,2512.4,0.39836]
[1729721250589,4.09745,2512.5,2512.3,0.39836]
[1729721250892,4.09745,2512.5,2512.4,0.39836]
[1729721251182,0.4913,2512.5,2512.2,1.015]
[1729721251377,0.88965,2512.5,2512.2,1.015]
[1729721251584,0.39836,2512.4,2512.3,1.41237]
[1729721253784,0.4913,2512.5,2512.3,1.014]
[1729721253985,0.39836,2512.4,2512.3,1.014]
[1729721254674,0.39836,2512.4,2511.8,1.93824]
[1729721254675,0.3984,2512.2,2511.8,0.9421]
[1729721254876,0.9604,2512.1,2512.0,0.39842]
[1729721257374,0.9604,2512.1,2512.0,1.41242]
[1729721260677,3.2078,2512.9,2512.5,0.39834]
[1729721260881,3.2078,2512.9,2512.8,0.3983]
[1729721261289,3.2078,2512.9,2512.3,3.2078]
[1729721261484,0.39833,2512.6,2512.4,1.41235]
[1729721261683,0.9778,2512.5,2512.4,1.41235]
[1729721262489,0.9778,2512.5,2512.4,2.85235]
[1729721263288,1.37614,2512.5,2512.4,2.85235]
[1729721264186,0.39836,2512.4,2512.3,1.41237]
[1729721264388,0.87056,2512.4,2512.3,1.41237]
[1729721265290,0.4722,2512.4,2512.3,1.41237]
[1729721266497,0.87056,2512.4,2512.3,1.41237]
[1729721267894,0.87056,2512.4,2512.3,1.014]
[1729721268097,0.87056,2512.4,2512.3,1.41237]
[1729721268697,0.4722,2512.4,2512.3,1.41237]
[1729721268898,0.87056,2512.4,2512.3,1.41237]
[1729721269501,0.4722,2512.4,2512.1,0.4698]
[1729721269702,0.87057,2512.4,2512.3,0.39837]
[1729721269897,0.39837,2512.3,2512.2,1.45239]
[1729721270091,0.4722,2512.4,2512.2,1.054]
[1729721270296,0.87057,2512.4,2512.3,0.39837]
[1729721270497,0.4722,2512.4,2512.3,0.39837]
[1729721272501,0.87056,2512.4,2512.3,0.39837]
[1729721273605,0.4722,2512.4,2512.3,0.39837]
[1729721274001,0.87056,2512.4,2512.3,0.39837]
[1729721274306,0.87056,2512.4,2512.3,1.45237]
[1729721276599,0.4722,2512.4,2512.3,1.45237]
[1729721278205,3.9808,2512.3,2510.9,1.03091004]
[1729721278406,3.2078,2511.4,2510.7,3.2078]
[1729721278816,0.39856,2511.2,2510.9,0.3986]
[1729721279208,0.9165,2511.5,2510.2,1.03091004]
[1729721279209,6.3178,2511.0,2510.2,1.03091004]
[1729721279406,3.11,2510.5,2510.4,0.39867]
[1729721279615,3.11,2510.5,2510.0,3.2078]
[1729721280008,3.11,2510.5,2510.1,0.4605]
[1729721280009,3.50867,2510.5,2510.1,0.4605]
[1729721280321,3.11,2510.2,2510.1,4.06702]
[1729721280518,3.11,2510.2,2510.1,4.7223]
[1729721280714,3.11,2510.2,2510.1,7.6523]
[1729721280910,3.11,2510.2,2510.1,8.7063]
[1729721282014,3.11,2510.2,2510.1,9.10502]
[1729721283218,3.11,2510.4,2510.2,0.3987]
[1729721284112,3.11,2510.4,2510.3,0.39869]
[1729721284321,3.11,2510.4,2510.2,0.39869]
[1729721284613,3.11,2510.4,2510.1,4.7223]
[1729721284822,3.11,2510.4,2510.2,0.3987]
[1729721285420,3.11,2510.4,2510.3,1.054]
[1729721287417,0.4757,2510.9,2510.3,5.0372]
[1729721287620,0.39862,2510.8,2510.6,0.39864]
[1729721287918,0.39859,2511.0,2510.8,0.39861]
[1729721288115,0.39859,2511.0,2510.9,1.054]
[1729721289313,0.39857,2511.1,2510.9,1.054]
[1729721289727,3.50857,2511.1,2510.9,1.054]
[1729721291108,3.11,2511.1,2510.9,1.054]
[1729721291315,0.39858,2511.0,2510.9,1.054]
[1729721293824,1.3769,2511.2,2510.9,1.054]
[1729721294122,0.39858,2511.0,2510.9,1.054]
[1729721300714,1.3769,2511.2,2510.7,3.2078]
[1729721300919,1.3769,2511.2,2510.9,0.39859]
[1729721300920,0.39858,2511.0,2510.9,0.39859]
[1729721302320,0.39858,2511.0,2510.8,1.4596]
[1729721304625,0.9087,2511.2,2510.8,1.061]
[1729721304832,0.9087,2511.2,2510.9,0.87499]
[1729721304833,0.39858,2511.1,2510.9,0.87499]
[1729721305731,0.39858,2511.0,2510.9,0.87499]
[1729721312339,0.39858,2511.0,2510.9,2.31499]
[1729721315125,3.2078,2511.8,2510.9,5.8988]
[1729721315327,8.74209856,2518.9,2511.7,1.44]
[1729721315328,5.6438,2512.2,2511.7,1.44]
[1729721315526,0.39844,2512.0,2511.9,1.44]
[1729721315728,0.39844,2512.0,2511.8,1.45945]
[1729721315923,2.77421,2512.1,2511.9,0.39843]
[1729721316127,0.9358,2512.1,2512.0,0.39842]
[1729721317331,0.4645,2512.1,2512.0,0.39842]
[1729721317529,0.4645,2512.1,2512.0,1.45942]
[1729721319138,0.4645,2512.1,2511.9,3.2078]
[1729721319348,0.39844,2511.9,2511.7,0.39846]
[1729721319546,0.39844,2511.9,2511.8,1.061]
[1729721319753,0.39843,2512.0,2511.8,1.45945]
[1729721320399,0.39843,2512.0,2511.8,1.061]
[1729721320547,0.39843,2512.0,2511.9,0.39844]
[1729721320950,0.39843,2512.0,2511.8,1.061]
[1729721320951,0.39843,2512.0,2511.8,1.45945]
[1729721321139,0.39843,2512.0,2511.9,0.39844]
[1729721321341,0.86292,2512.1,2511.9,0.39844]
[1729721321537,0.39842,2512.0,2511.9,0.39844]
[1729721321745,0.39842,2512.0,2511.9,1.45944]
[1729721322636,0.39842,2512.0,2511.9,0.39844]
[1729721322834,0.4645,2512.1,2511.9,1.061]
[1729721323030,0.4645,2512.1,2512.0,0.39842]
[1729721324369,0.4451,2512.3,2511.9,1.061]
[1729721324663,4.90076878,2512.2,2512.1,0.39839]
[1729721325833,9.27996878,2512.2,2512.0,0.39841]
[1729721326034,5.29916878,2512.2,2512.0,0.39841]
[1729721326337,4.90076878,2512.2,2512.1,0.39841]
[1729721326635,5.29916878,2512.2,2512.0,0.39841]
[1729721327138,5.29916878,2512.2,2512.1,0.39841]
[1729721327635,0.469,2512.2,2512.1,1.45941]
[1729721327839,3.579,2512.2,2511.5,4.0934]
[1729721328042,0.39841,2512.1,2511.9,0.39843]
[1729721328368,0.39842,2512.0,2511.9,0.39843]
[1729721328939,0.39842,2512.0,2511.6,1.04]
[1729721329233,0.4591,2511.9,2511.8,0.39844]
[1729721330943,0.4591,2511.9,2511.3,3.11]
[1729721331153,0.39848,2511.7,2511.5,0.39849]
[1729721331448,0.39848,2511.7,2511.6,0.39849]
[1729721332356,0.39848,2511.7,2511.6,1.43849]
[1729721333056,0.39848,2511.7,2511.6,1.04]
[1729721333456,0.39848,2511.7,2511.6,1.43849]
[1729721336352,1.83848,2511.7,2511.6,1.43849]
[1729721336760,1.83848,2511.7,2511.6,1.04]
[1729721336951,3.6669,2511.9,2511.6,1.04]
[1729721337159,1.30536,2511.8,2511.7,0.39847]
[1729721337365,0.9069,2511.8,2511.6,2.48]
[1729721337659,1.30536,2511.8,2511.7,0.39847]
[1729721338155,0.9069,2511.8,2511.7,1.44]
[1729721338356,0.9069,2511.8,2511.7,1.83847]
[1729721338550,0.4591,2511.9,2511.7,5.4216]
[1729721338758,0.4591,2511.9,2511.8,1.83845]
[1729721338955,0.4591,2511.9,2511.8,6.85925]
[1729721339653,0.4591,2511.9,2511.8,2.87845]
[1729721339858,0.4591,2511.9,2511.8,6.85925]
[1729721340556,0.4591,2511.9,2511.7,3.2078]
[1729721340763,2.77275,2511.9,2511.8,1.102]
[1729721340964,0.39848,2511.7,2511.6,0.39848]
[1729721341259,0.9343,2511.9,2511.8,0.39845]
[1729721341564,2.77274,2511.9,2511.7,1.83846]
[1729721341756,2.77274,2511.9,2511.8,0.39845]
[1729721341953,2.3743,2511.9,2511.6,0.9013]
[1729721342158,0.39845,2511.8,2511.7,1.50046]
[1729721343058,2.77275,2511.9,2511.7,1.50046]
[1729721343253,2.3743,2511.9,2511.7,1.50046]
[1729721343461,2.3743,2511.9,2511.7,1.102]
[1729721343662,2.3743,2511.9,2511.7,1.50046]
[1729721343861,0.39845,2511.8,2511.7,1.50046]
[1729721345566,0.9343,2511.9,2511.8,0.39845]
[1729721346071,0.4591,2511.9,2511.8,1.83845]
[1729721346960,0.4597,2512.1,2512.0,0.39842]
[1729721347158,0.4597,2512.1,2512.0,1.83842]